[Event "Elitserien Allsvenskan 2018-19"]
[Site "Sweden"]
[Date "2018.11.11"]
[Round "3"]
[White "Hedman, Erik"]
[Black "Thorn, Eric"]
[Result "1/2-1/2"]
[ECO "E05"]
[WhiteElo "2372"]
[BlackElo "2300"]
[Annotator "NA"]
[PlyCount "80"]
[EventDate "2018.11.09"]
[EventType "team-tourn"]
[EventCountry "SWE"]
[SourceTitle "playchess.com"]
[Source "ChessBase"]
[SourceQuality "1"]
[TimeControl "40/5400+30:1800+30"]

1. d4 {[%emt 0:00:00]} Nf6 {[%emt 0:00:25]} 2. c4 {[%emt 0:00:00]} e6 {[%emt 0:00:37]} 3. Nf3 {[%emt 0:00:00]} d5 {[%emt 0:00:18]} 4. g3 {[%emt 0:00:48]} Be7 {[%emt 0:00:07]} 5. Bg2 {[%emt 0:00:14]} O-O {[%emt 0:01:35]} 6. O-O {[%emt 0:03:31]} dxc4 {[%emt 0:00:16]} 7. Qc2 {[%emt 0:00:40]} a6 {[%emt 0:00:23]} 8. a4 {[%emt 0:00:23]} Bd7 {[%emt 0:00:07]} 9. Qxc4 {[%emt 0:01:30]} Bc6 {[%emt 0:00:46]} 10. Bf4 {[%emt 0:00:37]} Bd6 {[%emt 0:01:26]} 11. Qc1 {[%emt 0:00:28]} a5 {[%emt 0:04:07]} 12. Bd2 {[%emt 0:01:21]} Qe7 {[%emt 0:05:54]} 13. Nc3 {[%emt 0:09:29]} Na6 {[%emt 0:05:22]} 14. Bg5 {[%emt 0:01:16]} h6 {[%emt 0:07:46]} 15. Bxf6 {[%emt 0:07:16]} Qxf6 {[%emt 0:00:29]} 16. e4 {[%emt 0:00:22]} e5 {[%emt 0:02:37]} 17. dxe5 {[%emt 0:19:40]} Bxe5 {[%emt 0:00:20]} 18. Nxe5 {[%emt 0:00:04]} Qxe5 {[%emt 0:00:08]} 19. Qe3 {[%emt 0:00:18]} Rad8 {[%emt 0:05:01]} 20. Rfd1 {[%emt 0:08:31]} Qc5 {[%emt 0:07:34]} 21. Qe2 {[%emt 0:01:19]} Qb4 {[%emt 0:03:07]} 22. e5 {[%emt 0:02:58]} Bxg2 {[%emt 0:03:26]} 23. Kxg2 {[%emt 0:00:02]} c6 {[%emt 0:03:19]} 24. Ne4 {[%emt 0:04:48]} Nc5 {[%emt 0:11:05]} 25. Nxc5 {[%emt 0:09:21]} Qxc5 {[%emt 0:00:11]} 26. e6 {[%emt 0:04:08]} Qe7 {[%emt 0:13:47]} 27. exf7+ {[%emt 0:02:49]} Qxf7 {[%emt 0:00:43]} 28. Rxd8 {[%emt 0:06:07]} Rxd8 {[%emt 0:00:22]} 29. Qe3 {[%emt 0:02:03]} Re8 {[%emt 0:10:51]} 30. Qd3 {[%emt 0:02:36]} Qe6 {[%emt 0:05:31]} 31. Kg1 {[%emt 0:00:14]} Kh8 {[%emt 0:05:55]} 32. Qc3 {[%emt 0:01:42]} Qe5 {[%emt 0:00:38]} 33. Qb3 {[%emt 0:00:10]} Re7 {[%emt 0:01:10]} 34. Rd1 {[%emt 0:00:12]} Kh7 {[%emt 0:00:20]} 35. h4 {[%emt 0:01:07]} Qe2 {[%emt 0:00:57]} 36. Rd8 {[%emt 0:01:11]} Qe1+ {[%emt 0:00:42]} 37. Kg2 {[%emt 0:00:01]} Qe4+ {[%emt 0:00:05]} 38. Kg1 {[%emt 0:00:32]} Qe1+ {[%emt 0:00:19]} 39. Kg2 {[%emt 0:00:05]} Qe4+ {[%emt 0:00:04]} 40. Kg1 {[%emt 0:00:22]} Qe1+ {[%emt 0:00:06]} 1/2-1/2

[Event "Elitserien Allsvenskan 2018-19"]
[Site "Sweden"]
[Date "2018.11.11"]
[Round "3"]
[White "Seo, Jung Min"]
[Black "Bator, Robert"]
[Result "1-0"]
[ECO "D23"]
[WhiteElo "2369"]
[BlackElo "2384"]
[Annotator "NA"]
[PlyCount "189"]
[EventDate "2018.11.09"]
[EventType "team-tourn"]
[EventCountry "SWE"]
[SourceTitle "playchess.com"]
[Source "ChessBase"]
[SourceQuality "1"]
[TimeControl "40/5400+30:1800+30"]

1. Nf3 {[%emt 0:00:00]} d5 {[%emt 0:00:00]} 2. d4 {[%emt 0:00:00]} Nf6 {[%emt 0:00:31]} 3. c4 {[%emt 0:00:32]} c6 {[%emt 0:00:06]} 4. Qb3 {[%emt 0:01:35]} dxc4 {[%emt 0:01:46]} 5. Qxc4 {[%emt 0:00:25]} Bf5 {[%emt 0:00:43]} 6. g3 {[%emt 0:02:42]} e6 {[%emt 0:01:01]} 7. Bg2 {[%emt 0:00:52]} Be7 {[%emt 0:04:20]} 8. O-O {[%emt 0:00:59]} O-O {[%emt 0:00:37]} 9. Nc3 {[%emt 0:02:12]} Nbd7 {[%emt 0:00:58]} 10. Re1 {[%emt 0:05:04]} Ne4 {[%emt 0:07:00]} 11. Qb3 {[%emt 0:04:21]} Qb6 {[%emt 0:02:28]} 12. Nh4 {[%emt 0:15:31]} Bxh4 {[%emt 0:09:15]} 13. gxh4 {[%emt 0:09:44]} Nef6 {[%emt 0:19:02]} 14. e4 {[%emt 0:12:21]} Bg6 {[%emt 0:49:13]} 15. Qxb6 {[%emt 0:01:30]} axb6 {[%emt 0:00:00]} 16. Bf4 {[%emt 0:01:27]} Rfc8 {[%emt 0:00:00]} 17. a4 {[%emt 0:15:54]} h6 {[%emt 0:00:00]} 18. Rad1 {[%emt 0:01:49]} Ra5 {[%emt 0:00:00]} 19. Bd6 {[%emt 0:03:19]} Ne8 {[%emt 0:00:00]} 20. Bg3 {[%emt 0:00:28]} f6 {[%emt 0:00:00]} 21. Bh3 {[%emt 0:00:49]} Nf8 {[%emt 0:00:00]} 22. d5 {[%emt 0:07:03]} Bf7 {[%emt 0:00:00]} 23. f4 {[%emt 0:01:27]} cxd5 {[%emt 0:00:00]} 24. exd5 {[%emt 0:00:19]} f5 {[%emt 0:00:00]} 25. Bf2 {[%emt 0:00:56]} exd5 {[%emt 0:00:00]} 26. Bxb6 {[%emt 0:01:06]} Rxc3 {[%emt 0:00:00]} 27. bxc3 {[%emt 0:00:08]} Rxa4 {[%emt 0:00:00]} 28. Bd4 {[%emt 0:01:15]} Ng6 {[%emt 0:00:00]} 29. Bxf5 {[%emt 0:00:25]} Nxf4 {[%emt 0:00:00]} 30. Bd7 {[%emt 0:00:54]} Ra8 {[%emt 0:00:00]} 31. Rd2 {[%emt 0:03:25]} Nf6 {[%emt 0:00:45]} 32. Bxf6 {[%emt 0:01:28]} gxf6 {[%emt 0:00:03]} 33. Rf1 {[%emt 0:00:17]} Ng6 {[%emt 0:02:26]} 34. Rg2 {[%emt 0:01:46]} Kf8 {[%emt 0:00:48]} 35. Rxf6 {[%emt 0:00:10]} Ke7 {[%emt 0:00:12]} 36. Rf1 {[%emt 0:00:29]} Nxh4 {[%emt 0:05:14]} 37. Re2+ {[%emt 0:00:19]} Kxd7 {[%emt 0:00:02]} 38. Rxf7+ {[%emt 0:00:05]} Kd6 {[%emt 0:00:27]} 39. Rxb7 {[%emt 0:00:59]} Rg8+ {[%emt 0:00:26]} 40. Kf2 {[%emt 0:00:26]} Nf5 {[%emt 0:01:51]} 41. Rf7 {[%emt 0:31:21]} Nh4 {[%emt 0:05:02]} 42. Rf6+ {[%emt 0:00:00]} Kc5 {[%emt 0:00:08]} 43. Rxh6 {[%emt 0:00:00]} Rf8+ {[%emt 0:02:21]} 44. Ke1 {[%emt 0:00:00]} Nf3+ {[%emt 0:01:45]} 45. Kd1 {[%emt 0:00:00]} d4 {[%emt 0:04:38]} 46. cxd4+ {[%emt 0:00:00]} Nxd4 {[%emt 0:01:00]} 47. Rg2 {[%emt 0:00:00]} Nf5 {[%emt 0:02:35]} 48. Rh5 {[%emt 0:00:00]} Kd4 {[%emt 0:00:35]} 49. Rf2 {[%emt 0:00:00]} Ke4 {[%emt 0:01:03]} 50. Ke1 {[%emt 0:00:00]} Rf7 {[%emt 0:00:19]} 51. Rg5 {[%emt 0:00:00]} Nh6 {[%emt 0:09:41]} 52. Rxf7 {[%emt 0:00:00]} Nxf7 {[%emt 0:00:02]} 53. Rg1 {[%emt 0:00:00]} Ne5 {[%emt 0:00:22]} 54. Ke2 {[%emt 0:00:00]} Kf4 {[%emt 0:00:12]} 55. h3 {[%emt 0:00:00]} Kf5 {[%emt 0:00:10]} 56. Rg3 {[%emt 0:00:00]} Ng6 {[%emt 0:00:11]} 57. Kf2 {[%emt 0:00:00]} Nh4 {[%emt 0:00:32]} 58. Rg4 {[%emt 0:00:00]} Ng6 {[%emt 0:00:09]} 59. Kg3 {[%emt 0:00:00]} Kf6 {[%emt 0:00:47]} 60. h4 {[%emt 0:00:00]} Ne5 {[%emt 0:01:09]} 61. Rg5 {[%emt 0:00:00]} Nf7 {[%emt 0:00:22]} 62. Rg8 {[%emt 0:00:00]} Nh6 {[%emt 0:00:04]} 63. Rg5 {[%emt 0:00:00]} Nf7 {[%emt 0:00:05]} 64. Ra5 {[%emt 0:00:00]} Kg6 {[%emt 0:00:35]} 65. Kf4 {[%emt 0:00:00]} Nh6 {[%emt 0:01:23]} 66. h5+ {[%emt 0:00:00]} Kg7 {[%emt 0:01:02]} 67. Ra7+ {[%emt 0:00:00]} Kf6 {[%emt 0:02:41]} 68. Rb7 {[%emt 0:00:00]} Nf7 {[%emt 0:00:24]} 69. Rb6+ {[%emt 0:00:00]} Kg7 {[%emt 0:00:08]} 70. Rg6+ {[%emt 0:00:00]} Kh7 {[%emt 0:00:05]} 71. Kf5 {[%emt 0:00:00]} Nh6+ {[%emt 0:00:16]} 72. Kg5 {[%emt 0:00:00]} Nf7+ {[%emt 0:00:07]} 73. Kf6 {[%emt 0:00:00]} Nh6 {[%emt 0:00:59]} 74. Rg7+ {[%emt 0:00:00]} Kh8 {[%emt 0:00:10]} 75. Kg6 {[%emt 0:00:00]} Ng4 {[%emt 0:01:35]} 76. Ra7 {[%emt 0:00:00]} Ne5+ {[%emt 0:00:10]} 77. Kf5 {[%emt 0:00:00]} Nf3 {[%emt 0:00:37]} 78. Kg6 {[%emt 0:00:00]} Ne5+ {[%emt 0:00:25]} 79. Kf6 {[%emt 0:00:00]} Nf3 {[%emt 0:00:37]} 80. Re7 {[%emt 0:00:00]} Kg8 {[%emt 0:00:10]} 81. Rg7+ {[%emt 0:00:00]} Kh8 {[%emt 0:00:03]} 82. Rg3 {[%emt 0:00:00]} Nd4 {[%emt 0:00:17]} 83. Kg6 {[%emt 0:00:00]} Ne6 {[%emt 0:00:16]} 84. Ra3 {[%emt 0:00:00]} Nf4+ {[%emt 0:01:34]} 85. Kh6 {[%emt 0:00:00]} Kg8 {[%emt 0:00:09]} 86. Ra8+ {[%emt 0:00:00]} Kf7 {[%emt 0:00:07]} 87. Rb8 {[%emt 0:00:00]} Ne6 {[%emt 0:01:14]} 88. Kh7 {[%emt 0:00:00]} Nf8+ {[%emt 0:01:07]} 89. Kh8 {[%emt 0:00:00]} Ne6 {[%emt 0:00:06]} 90. h6 {[%emt 0:00:00]} Nf4 {[%emt 0:04:20]} 91. Rb7+ {[%emt 0:00:00]} Kf8 {[%emt 0:00:13]} 92. Kh7 {[%emt 0:00:00]} Nd5 {[%emt 0:01:05]} 93. Rg7 {[%emt 0:00:00]} Nf4 {[%emt 0:00:19]} 94. Rg4 {[%emt 0:00:00]} Nd3 {[%emt 0:00:21]} 95. Rg1 {[%emt 0:00:00]} 1-0

[Event "Elitserien Allsvenskan 2018-19"]
[Site "Sweden"]
[Date "2018.11.11"]
[Round "3"]
[White "Schneider, Stefan"]
[Black "Nygren, David"]
[Result "1-0"]
[ECO "A43"]
[WhiteElo "2365"]
[BlackElo "2288"]
[Annotator "NA"]
[PlyCount "61"]
[EventDate "2018.11.09"]
[EventType "team-tourn"]
[EventCountry "SWE"]
[SourceTitle "playchess.com"]
[Source "ChessBase"]
[SourceQuality "1"]
[TimeControl "40/5400+30:1800+30"]

1. d4 {[%emt 0:00:00]} Nf6 {[%emt 0:00:00]} 2. Nf3 {[%emt 0:00:00]} c5 {[%emt 0:00:41]} 3. d5 {[%emt 0:00:05]} e6 {[%emt 0:00:28]} 4. Nc3 {[%emt 0:00:23]} exd5 {[%emt 0:03:58]} 5. Nxd5 {[%emt 0:00:02]} Nc6 {[%emt 0:03:23]} 6. Bg5 {[%emt 0:13:48]} Be7 {[%emt 0:03:54]} 7. Nxe7 {[%emt 0:06:34]} Qxe7 {[%emt 0:00:17]} 8. c4 {[%emt 0:00:25]} d6 {[%emt 0:04:43]} 9. e3 {[%emt 0:02:35]} O-O {[%emt 0:05:34]} 10. Be2 {[%emt 0:03:31]} Be6 {[%emt 0:03:51]} 11. O-O {[%emt 0:04:27]} Rfd8 {[%emt 0:02:12]} 12. Qc2 {[%emt 0:12:24]} h6 {[%emt 0:06:00]} 13. Bh4 {[%emt 0:01:07]} d5 {[%emt 0:18:48]} 14. a3 {[%emt 0:04:23]} d4 {[%emt 0:05:22]} 15. Rae1 {[%emt 0:13:57]} dxe3 {[%emt 0:10:04]} 16. fxe3 {[%emt 0:03:18]} Bg4 {[%emt 0:04:59]} 17. Bd3 {[%emt 0:12:46]} Bxf3 {[%emt 0:05:30]} 18. gxf3 {[%emt 0:00:17]} Rd6 {[%emt 0:02:02]} 19. Bf5 {[%emt 0:05:31]} Rad8 {[%emt 0:01:31]} 20. Re2 {[%emt 0:00:28]} Re8 {[%emt 0:04:53]} 21. Rff2 {[%emt 0:02:00]} Ne5 {[%emt 0:02:23]} 22. Rf1 {[%emt 0:02:13]} Red8 {[%emt 0:02:24]} 23. b3 {[%emt 0:04:57]} Re8 {[%emt 0:02:24]} 24. Kh1 {[%emt 0:02:33]} Qd8 {[%emt 0:01:27]} 25. Rg2 {[%emt 0:00:48]} Kh8 {[%emt 0:02:39]} 26. f4 {[%emt 0:00:37]} Nc6 {[%emt 0:00:41]} 27. Rfg1 {[%emt 0:00:14]} Rg8 {[%emt 0:01:45]} 28. Bh7 {[%emt 0:01:07]} Re8 {[%emt 0:01:35]} 29. Rxg7 {[%emt 0:00:25]} Qc8 {[%emt 0:00:28]} 30. Bf5 {[%emt 0:01:25]} Qd8 {[%emt 0:00:22]} 31. Bxf6 {[%emt 0:00:37]} 1-0

[Event "Elitserien Allsvenskan 2018-19"]
[Site "Sweden"]
[Date "2018.11.11"]
[Round "3"]
[White "Wickstrom, Lucas"]
[Black "Lindgren, Philip"]
[Result "0-1"]
[ECO "D35"]
[WhiteElo "2356"]
[BlackElo "2374"]
[Annotator "NA"]
[PlyCount "40"]
[EventDate "2018.11.09"]
[EventType "team-tourn"]
[EventCountry "SWE"]
[SourceTitle "playchess.com"]
[Source "ChessBase"]
[SourceQuality "1"]
[TimeControl "40/5400+30:1800+30"]

1. d4 {[%emt 0:00:00]} Nf6 {[%emt 0:00:00]} 2. Nf3 {[%emt 0:05:09]} d5 {[%emt 0:01:22]} 3. c4 {[%emt 0:01:45]} e6 {[%emt 0:00:30]} 4. cxd5 {[%emt 0:01:09]} exd5 {[%emt 0:00:08]} 5. Nc3 {[%emt 0:00:15]} c6 {[%emt 0:01:00]} 6. Bg5 {[%emt 0:00:44]} Nbd7 {[%emt 0:01:55]} 7. e3 {[%emt 0:00:27]} h6 {[%emt 0:02:21]} 8. Bh4 {[%emt 0:00:13]} Bd6 {[%emt 0:06:26]} 9. Bd3 {[%emt 0:02:56]} Nb6 {[%emt 0:01:53]} 10. Ne5 {[%emt 0:06:35]} Be6 {[%emt 0:13:29]} 11. f4 {[%emt 0:06:38]} g5 {[%emt 0:05:12]} 12. fxg5 {[%emt 0:15:31]} Bxe5 {[%emt 0:03:05]} 13. g6 {[%emt 0:01:09]} Bd6 {[%emt 0:03:13]} 14. O-O {[%emt 0:08:08]} Be7 {[%emt 0:08:59]} 15. Qf3 {[%emt 0:11:28]} Nbd7 {[%emt 0:02:59]} 16. e4 {[%emt 0:01:43]} Qb6 {[%emt 0:09:29]} 17. Rae1 {[%emt 0:05:03]} Ne5 {[%emt 0:03:40]} 18. Qe3 {[%emt 0:06:04]} Nfg4 {[%emt 0:02:19]} 19. gxf7+ {[%emt 0:00:17]} Bxf7 {[%emt 0:01:57]} 20. Rxf7 {[%emt 0:00:25]} Bxh4 {[%emt 0:03:15]} 0-1

[Event "Elitserien Allsvenskan 2018-19"]
[Site "Sweden"]
[Date "2018.11.11"]
[Round "3"]
[White "Bellon Lopez, Juan Manuel"]
[Black "De Verdier, Michael"]
[Result "1/2-1/2"]
[ECO "D02"]
[WhiteElo "2337"]
[BlackElo "2277"]
[Annotator "NA"]
[PlyCount "91"]
[EventDate "2018.11.09"]
[EventType "team-tourn"]
[EventCountry "SWE"]
[SourceTitle "playchess.com"]
[Source "ChessBase"]
[SourceQuality "1"]
[TimeControl "40/5400+30:1800+30"]

1. d4 {[%emt 1:30:30]} d5 {[%emt 0:02:44]} 2. Bf4 {[%emt 0:00:00]} Nf6 {[%emt 0:00:58]} 3. e3 {[%emt 0:00:00]} e6 {[%emt 0:00:06]} 4. Nd2 {[%emt 0:00:00]} Bd6 {[%emt 0:00:18]} 5. Bg3 {[%emt 0:00:00]} O-O {[%emt 0:01:02]} 6. Ngf3 {[%emt 0:00:00]} b6 {[%emt 0:00:19]} 7. c3 {[%emt 0:00:00]} c5 {[%emt 0:02:17]} 8. Ne5 {[%emt 0:00:00]} Qc7 {[%emt 0:06:07]} 9. a4 {[%emt 0:00:00]} Ba6 {[%emt 0:12:49]} 10. Bxa6 {[%emt 0:00:00]} Nxa6 {[%emt 0:00:02]} 11. O-O {[%emt 0:00:00]} Nb8 {[%emt 0:07:11]} 12. Nd3 {[%emt 0:00:00]} Bxg3 {[%emt 0:15:41]} 13. hxg3 {[%emt 0:00:00]} Nbd7 {[%emt 0:12:50]} 14. g4 {[%emt 0:00:00]} e5 {[%emt 0:06:19]} 15. g5 {[%emt 0:00:00]} Ne4 {[%emt 0:02:15]} 16. dxe5 {[%emt 0:00:00]} Nxe5 {[%emt 0:01:48]} 17. Nxe5 {[%emt 0:00:00]} Nxd2 {[%emt 0:01:49]} 18. Qxd2 {[%emt 0:00:00]} Qxe5 {[%emt 0:00:05]} 19. f4 {[%emt 0:00:00]} Qe4 {[%emt 0:01:03]} 20. a5 {[%emt 0:00:00]} Rad8 {[%emt 0:03:35]} 21. axb6 {[%emt 0:00:00]} axb6 {[%emt 0:00:03]} 22. Rad1 {[%emt 0:00:00]} f6 {[%emt 0:03:23]} 23. gxf6 {[%emt 0:00:00]} Rxf6 {[%emt 0:00:13]} 24. Qd3 {[%emt 0:00:00]} Re6 {[%emt 0:02:58]} 25. Kf2 {[%emt 0:00:00]} d4 {[%emt 0:02:46]} 26. exd4 {[%emt 0:00:00]} cxd4 {[%emt 0:02:40]} 27. Qxe4 {[%emt 0:00:29]} Rxe4 {[%emt 0:00:01]} 28. g3 {[%emt 0:00:30]} Rde8 {[%emt 0:02:11]} 29. Rxd4 {[%emt 0:05:56]} Re2+ {[%emt 0:00:23]} 30. Kf3 {[%emt 0:00:17]} Rxb2 {[%emt 0:01:45]} 31. Kg4 {[%emt 0:01:55]} Rc2 {[%emt 0:02:26]} 32. Rf3 {[%emt 0:02:35]} Rc8 {[%emt 0:00:27]} 33. Rdd3 {[%emt 0:00:36]} Re2 {[%emt 0:01:25]} 34. f5 {[%emt 0:00:57]} Kf7 {[%emt 0:01:13]} 35. Rd7+ {[%emt 0:01:05]} Re7 {[%emt 0:00:06]} 36. Rd6 {[%emt 0:00:45]} Rec7 {[%emt 0:01:35]} 37. Re3 {[%emt 0:00:45]} Re7 {[%emt 0:01:50]} 38. Red3 {[%emt 0:00:24]} Rc4+ {[%emt 0:00:39]} 39. Kg5 {[%emt 0:01:35]} h6+ {[%emt 0:01:04]} 40. Kh5 {[%emt 0:00:04]} Rec7 {[%emt 0:02:17]} 41. Rxb6 {[%emt 0:10:45]} Rxc3 {[%emt 0:01:43]} 42. Rbd6 {[%emt 0:04:53]} Rxd3 {[%emt 0:00:12]} 43. Rxd3 {[%emt 0:00:01]} Kf6 {[%emt 0:03:46]} 44. g4 {[%emt 0:03:47]} Rc1 {[%emt 0:01:06]} 45. Rd6+ {[%emt 0:01:21]} Kf7 {[%emt 0:00:05]} 46. Kh4 {[%emt 0:01:05]} 1/2-1/2

[Event "Elitserien Allsvenskan 2018-19"]
[Site "Sweden"]
[Date "2018.11.11"]
[Round "3"]
[White "Kucuksari, Kaan"]
[Black "Namini, Armin"]
[Result "1-0"]
[ECO "E92"]
[WhiteElo "2329"]
[BlackElo "2205"]
[Annotator "NA"]
[PlyCount "87"]
[EventDate "2018.11.09"]
[EventType "team-tourn"]
[EventCountry "SWE"]
[SourceTitle "playchess.com"]
[Source "ChessBase"]
[SourceQuality "1"]
[TimeControl "40/5400+30:1800+30"]

1. d4 {[%emt 0:00:00]} Nf6 {[%emt 0:09:12]} 2. Nf3 {[%emt 0:00:00]} g6 {[%emt 0:00:04]} 3. c4 {[%emt 0:00:00]} Bg7 {[%emt 0:00:03]} 4. Nc3 {[%emt 0:00:00]} O-O {[%emt 0:00:03]} 5. e4 {[%emt 0:00:00]} d6 {[%emt 0:00:05]} 6. h3 {[%emt 0:00:00]} e5 {[%emt 0:00:30]} 7. d5 {[%emt 0:00:00]} Na6 {[%emt 0:00:15]} 8. Bg5 {[%emt 0:00:04]} h6 {[%emt 0:00:35]} 9. Be3 {[%emt 0:00:05]} Nc5 {[%emt 0:00:04]} 10. Nd2 {[%emt 0:00:07]} a5 {[%emt 0:00:06]} 11. Be2 {[%emt 0:00:05]} Bd7 {[%emt 0:00:52]} 12. O-O {[%emt 0:00:06]} Nh7 {[%emt 0:02:33]} 13. b3 {[%emt 0:00:04]} f5 {[%emt 0:00:53]} 14. f3 {[%emt 0:00:02]} f4 {[%emt 0:04:54]} 15. Bf2 {[%emt 0:00:01]} Bf6 {[%emt 0:00:53]} 16. Qe1 {[%emt 0:00:18]} h5 {[%emt 0:05:30]} 17. a3 {[%emt 0:03:02]} a4 {[%emt 0:16:57]} 18. b4 {[%emt 0:03:20]} Nb3 {[%emt 0:02:44]} 19. Nxb3 {[%emt 0:19:11]} axb3 {[%emt 0:00:09]} 20. c5 {[%emt 0:00:06]} Ng5 {[%emt 0:03:16]} 21. Kh2 {[%emt 0:12:53]} Bxh3 {[%emt 0:11:33]} 22. gxh3 {[%emt 0:05:50]} Qd7 {[%emt 0:01:07]} 23. Qd1 {[%emt 0:01:10]} Qxh3+ {[%emt 0:00:35]} 24. Kg1 {[%emt 0:00:01]} b2 {[%emt 0:07:28]} 25. Ra2 {[%emt 0:01:26]} Be7 {[%emt 0:01:47]} 26. c6 {[%emt 0:06:05]} b1=Q {[%emt 0:02:43]} 27. Qxb1 {[%emt 0:06:14]} Nxf3+ {[%emt 0:01:32]} 28. Bxf3 {[%emt 0:07:47]} Qxf3 {[%emt 0:00:02]} 29. cxb7 {[%emt 0:01:55]} Rab8 {[%emt 0:01:21]} 30. Ba7 {[%emt 0:13:20]} Qxc3 {[%emt 0:01:12]} 31. Rc1 {[%emt 0:02:37]} Qf3 {[%emt 0:04:38]} 32. Rxc7 {[%emt 0:04:10]} Bd8 {[%emt 0:13:03]} 33. Rf2 {[%emt 0:10:35]} Qxa3 {[%emt 0:05:21]} 34. Bxb8 {[%emt 0:00:12]} Qg3+ {[%emt 0:00:06]} 35. Rg2 {[%emt 0:00:23]} Qe3+ {[%emt 0:00:01]} 36. Kh2 {[%emt 0:00:47]} f3 {[%emt 0:01:19]} 37. Qc1 {[%emt 0:04:18]} Qxe4 {[%emt 0:02:32]} 38. Rc4 {[%emt 0:00:43]} Qf5 {[%emt 0:01:06]} 39. Bxd6 {[%emt 0:01:23]} fxg2 {[%emt 0:00:38]} 40. Bxf8 {[%emt 0:00:17]} Bg5 {[%emt 0:01:37]} 41. b8=Q {[%emt 0:31:06]} Bxc1 {[%emt 0:01:00]} 42. Bd6+ {[%emt 0:00:00]} Kh7 {[%emt 0:00:14]} 43. Rc7+ {[%emt 0:00:00]} Kh6 {[%emt 0:00:09]} 44. Qf8+ {[%emt 0:00:00]} 1-0

[Event "Elitserien Allsvenskan 2018-19"]
[Site "Sweden"]
[Date "2018.11.11"]
[Round "3"]
[White "Storme, Isak"]
[Black "Carlsson, Ludvig"]
[Result "0-1"]
[ECO "B76"]
[WhiteElo "2319"]
[BlackElo "2041"]
[Annotator "NA"]
[PlyCount "100"]
[EventDate "2018.11.09"]
[EventType "team-tourn"]
[EventCountry "SWE"]
[SourceTitle "playchess.com"]
[Source "ChessBase"]
[SourceQuality "1"]
[TimeControl "40/5400+30:1800+30"]

1. e4 {[%emt 0:00:00]} c5 {[%emt 0:01:25]} 2. Nf3 {[%emt 0:00:00]} d6 {[%emt 0:00:10]} 3. d4 {[%emt 0:00:00]} cxd4 {[%emt 0:00:05]} 4. Nxd4 {[%emt 0:00:03]} Nf6 {[%emt 0:00:06]} 5. Nc3 {[%emt 0:00:05]} g6 {[%emt 0:00:08]} 6. Be3 {[%emt 0:00:06]} Bg7 {[%emt 0:00:04]} 7. f3 {[%emt 0:00:04]} Nc6 {[%emt 0:00:05]} 8. Qd2 {[%emt 0:00:05]} O-O {[%emt 0:00:05]} 9. O-O-O {[%emt 0:00:06]} d5 {[%emt 0:00:04]} 10. Qe1 {[%emt 0:00:06]} e5 {[%emt 0:25:10]} 11. Nxc6 {[%emt 0:01:18]} bxc6 {[%emt 0:00:10]} 12. exd5 {[%emt 0:00:10]} Nxd5 {[%emt 0:11:04]} 13. Bc4 {[%emt 0:00:39]} Be6 {[%emt 0:12:36]} 14. Ne4 {[%emt 0:00:17]} f5 {[%emt 0:10:39]} 15. Ng5 {[%emt 0:15:14]} Bc8 {[%emt 0:00:51]} 16. h4 {[%emt 0:03:15]} h6 {[%emt 0:07:07]} 17. Ne4 {[%emt 0:03:30]} Be6 {[%emt 0:02:27]} 18. Qg3 {[%emt 0:31:55]} f4 {[%emt 0:06:13]} 19. Qxg6 {[%emt 0:01:36]} Bf7 {[%emt 0:00:08]} 20. Qxc6 {[%emt 0:01:24]} Rc8 {[%emt 0:00:24]} 21. Rxd5 {[%emt 0:05:15]} Rxc6 {[%emt 0:02:33]} 22. Rxd8 {[%emt 0:00:11]} Rxd8 {[%emt 0:00:21]} 23. Bxf7+ {[%emt 0:00:08]} Kxf7 {[%emt 0:00:06]} 24. Bxa7 {[%emt 0:05:53]} Ra6 {[%emt 0:00:59]} 25. Bc5 {[%emt 0:00:08]} Rxa2 {[%emt 0:00:32]} 26. Kb1 {[%emt 0:00:06]} Ra6 {[%emt 0:01:07]} 27. c4 {[%emt 0:01:28]} Bf8 {[%emt 0:03:15]} 28. Bxf8 {[%emt 0:01:27]} Rxf8 {[%emt 0:00:31]} 29. Rd1 {[%emt 0:03:33]} Rg8 {[%emt 0:02:14]} 30. Rd7+ {[%emt 0:00:13]} Ke8 {[%emt 0:00:13]} 31. Rh7 {[%emt 0:17:36]} Rxg2 {[%emt 0:06:49]} 32. c5 {[%emt 0:00:09]} Kf8 {[%emt 0:01:26]} 33. Rb7 {[%emt 0:02:26]} Rg3 {[%emt 0:02:27]} 34. Rb6 {[%emt 0:03:18]} Rxb6 {[%emt 0:01:30]} 35. cxb6 {[%emt 0:00:05]} Rg6 {[%emt 0:00:07]} 36. Nc5 {[%emt 0:04:17]} Ke7 {[%emt 0:00:11]} 37. b7 {[%emt 0:01:04]} Rb6 {[%emt 0:00:07]} 38. Kc2 {[%emt 0:00:31]} Kd6 {[%emt 0:00:34]} 39. Ne4+ {[%emt 0:00:23]} Kd5 {[%emt 0:00:18]} 40. Kc3 {[%emt 0:01:08]} Rxb7 {[%emt 0:00:13]} 41. b4 {[%emt 0:07:21]} Rb6 {[%emt 0:02:48]} 42. h5 {[%emt 0:01:08]} Ra6 {[%emt 0:00:17]} 43. Kd3 {[%emt 0:01:27]} Ra1 {[%emt 0:06:03]} 44. b5 {[%emt 0:04:24]} Ra3+ {[%emt 0:01:15]} 45. Nc3+ {[%emt 0:03:12]} Kc5 {[%emt 0:00:23]} 46. Kd2 {[%emt 0:04:30]} Kd4 {[%emt 0:01:06]} 47. Ne2+ {[%emt 0:02:19]} Kc4 {[%emt 0:00:13]} 48. Nc1 {[%emt 0:01:52]} Rxf3 {[%emt 0:01:10]} 49. b6 {[%emt 0:00:11]} Rf2+ {[%emt 0:00:03]} 50. Ne2 {[%emt 0:02:40]} f3 {[%emt 0:00:07]} 0-1